Cogmind - Beta 12 @@@ ROGUE MODE // 2023.04.29 @ 17:50:02 Player: maxwell Result: Smashed by cave-in Performance ------------- Evolutions (6) 3000 Regions Visited (27) 5400 Robots Destroyed (423) 2115 Value Destroyed (17100) 17100 Prototype IDs (35) 700 Alien Tech Used (1) 200 Bonus (5854) 5854 TOTAL SCORE: 34369 Bonus ------- High Alert Combat Kills 2746 Follower Combat Kills 1841 Network Hubs Disabled 400 Met Data Miner 300 Destroyed Z-Imprinter 1000 Triggered Deep Caves Wall 500 Exposed GOLEM Chamber 500 A7 Reached Mainframe 300 Met R17 at Cetus 500 Friendly Fire -2233 Cogmind --------- Core Integrity 0/1150 Matter 225/300 Energy 100/100 System Corruption 68% Temperature Warm (198) Movement Walking (150) Location -4/Armory Parts ------- > --- POWER (2) -------- (None) > --- PROPULSION (6) --- Assembled Alloy Leg > --- UTILITY (8) ------ (None) > --- WEAPON (4) ------- (None) > --- INVENTORY (5) ---- Cargo Storage Unit Peak State ------------ > --- POWER ------------ Assembled Flux Generator > --- PROPULSION ------- Armored Medium Treads Armored Medium Treads Centrium Heavy Treads Centrium Heavy Treads > --- UTILITY ---------- Assembled Nanovents Assembled Nanovents Cargo Storage Unit Assembled Biocell Array Trap Reconfigurator GOLEM Unit > --- WEAPON ----------- Assembled Focal Cannon Assembled Focal Cannon Assembled Focal Cannon > --- INVENTORY -------- Centrium Heavy Treads Centrium Heavy Treads Armored Huge Wheel Power Amplifier Advanced Cooling System Zionite Biocell Compact Matter Pod Machine Analyzer Improved Signal Interpreter Hardened Medium Armor Plating Centrium Medium Armor Plating Centrium Medium Armor Plating Centrium Medium Armor Plating Centrium Medium Armor Plating Centrium Medium Armor Plating Graphene Brace Authchip [Device] GOLEM Unit GOLEM Unit GOLEM Unit Cooled Plasma Cannon Long-range Missile Launcher Long-range Missile Launcher GAL Module [Rating: 166] Favorites ----------- Power Angular Momentum Engine Engine Angular Momentum Engine Power Core Light Nuclear Core Reactor Assembled Flux Generator Propulsion Light Treads Treads Light Treads Leg Assembled Alloy Leg Wheel Armored Huge Wheel Utility Huge Storage Unit Device Improved Shield Generator Storage Huge Storage Unit Processor Advanced Signal Interpreter Hackware Hacking Suite Protection Hardened Heavy Armor Plating Weapon Assembled Focal Cannon Energy Gun High-powered Shock Rifle Energy Cannon Assembled Focal Cannon Ballistic Gun Shotgun Launcher Advanced EMP Blaster Impact Weapon Power Maul Build | -11 -10 -10 -9 -9 -9 -8 -8 -7 -7 -7 -7 -6 -6 -6 -6 -6 -6 -5 -5 -5 -5 -5 -5 -4 -4 -4 -4 ------- Run | Jun Mat Min Mat Min Exi Min Mat Fac Low Low Dat Pro Fac Low Low Zio Dee Pro Fac Ext Cet Arc Hub Fac Was Fac Arm Slots Evolved 12 | . . . 2 . . . 2 2 . . . . 2 . . . . . 2 . . . . 2 . . . Power 1 | . . . . . . . . . . . . . 1 . . . . . . . . . . . . . . Propulsion 3 | . . . 1 . . . . 1 . . . . . . . . . . 1 . . . . . . . . Utility 6 | . . . 1 . . . 2 1 . . . . 1 . . . . . 1 . . . . . . . . Weapon 2 | . . . . . . . . . . . . . . . . . . . . . . . . 2 . . . Parts Attached 342 | . 11 3 19 6 . 4 21 34 14 16 2 18 34 3 5 5 52 . 8 10 11 7 12 16 2 27 2 Power 23 | . 1 . 2 . . . 4 2 1 1 . . 6 . . 2 1 . . . . . . . . 3 . Engine 16 | . 1 . 2 . . . 3 2 . 1 . . 5 . . 2 . . . . . . . . . . . Core 5 | . . . . . . . 1 . 1 . . . 1 . . . . . . . . . . . . 2 . Reactor 2 | . . . . . . . . . . . . . . . . . 1 . . . . . . . . 1 . Propulsion 54 | . 2 . 7 1 . . 4 7 1 1 . 2 2 . . 1 7 . 3 . 2 . 5 3 . 6 . Treads 47 | . 2 . 7 1 . . 4 7 1 1 . 2 2 . . 1 4 . 3 . 2 . 5 3 . 2 . Leg 6 | . . . . . . . . . . . . . . . . . 3 . . . . . . . . 3 . Wheel 1 | . . . . . . . . . . . . . . . . . . . . . . . . . . 1 . Hover . | . . . . . . . . . . . . . . . . . . . . . . . . . . . . Flight . | . . . . . . . . . . . . . . . . . . . . . . . . . . . . Utility 157 | . 4 2 4 3 . 3 8 14 7 3 . 4 16 2 4 . 28 . 5 8 5 7 6 9 1 12 2 Device 95 | . . 1 1 3 . 3 3 10 7 2 . 2 11 2 4 . 14 . 1 4 1 5 4 6 1 8 2 Storage 9 | . 2 . . . . . . . . . . . . . . . 4 . 1 . . . 1 . . 1 . Processor 5 | . . . 1 . . . . 1 . . . . 1 . . . . . . . . . . 2 . . . Hackware 3 | . . . . . . . 1 1 . . . . . . . . . . . . . 1 . . . . . Protection 45 | . 2 1 2 . . . 4 2 . 1 . 2 4 . . . 10 . 3 4 4 1 1 1 . 3 . Artifact . | . . . . . . . . . . . . . . . . . . . . . . . . . . . . Weapon 108 | . 4 1 6 2 . 1 5 11 5 11 2 12 10 1 1 2 16 . . 2 4 . 1 4 1 6 . Energy Gun 13 | . . . . 1 . 1 1 1 . . . . . . . . 6 . . . . . . . . 3 . Energy Cannon 47 | . . . . . . . 2 7 3 7 2 5 7 . 1 1 4 . . 2 3 . 1 . . 2 . Ballistic Gun 8 | . 3 . 5 . . . . . . . . . . . . . . . . . . . . . . . . Ballistic Cannon . | . . . . . . . . . . . . . . . . . . . . . . . . . . . . Launcher 39 | . 1 1 1 1 . . 2 3 2 4 . 7 3 1 . . 6 . . . 1 . . 4 1 1 . Special Weapon . | . . . . . . . . . . . . . . . . . . . . . . . . . . . . Impact Weapon 1 | . . . . . . . . . . . . . . . . 1 . . . . . . . . . . . Slashing Weapon . | . . . . . . . . . . . . . . . . . . . . . . . . . . . . Piercing Weapon . | . . . . . . . . . . . . . . . . . . . . . . . . . . . . Special Melee Weapon . | . . . . . . . . . . . . . . . . . . . . . . . . . . . . Unidentified Prototypes 17 | . . . 1 1 . . . 3 . . . . 1 . 1 . 7 . . . 2 . . . . . 1 Corrupted Parts 4 | . . . . . . . . . . . . . . . . . . . . . 2 . 2 . . . . System Corruption 26 | . . . . . . . . . . . . . . . . . . . . . 19 . 7 . . . . Parts Lost 67 | . . 1 2 . . 1 . . 2 1 . 1 3 . . . 3 . 5 . 1 . 7 . 3 22 15 Power 6 | . . . . . . . . . 1 1 . . . . . . . . . . . . . . . 3 1 Propulsion 13 | . . . . . . . . . 1 . . 1 . . . . . . 1 . 1 . 1 . . 7 1 Utility 33 | . . 1 1 . . 1 . . . . . . 3 . . . 3 . 4 . . . 5 . . 5 10 Weapon 15 | . . . 1 . . . . . . . . . . . . . . . . . . . 1 . 3 7 3 Highest Loss Streak 12 | . . 1 1 . . 1 . . 1 1 . 1 1 . . . 2 . 3 . 1 . 3 . 2 4 12 To Critical Strikes 1 | . . . . . . . . . . . . . . . . . . . . . 1 . . . . . . Average Slot Usage (%) 86 | . 98 99 98 100 100 100 98 91 91 90 77 91 86 93 92 86 76 75 72 76 71 65 70 71 73 69 46 Engine 7 | . 14 14 11 11 11 11 3 7 2 3 7 7 7 13 12 11 5 . . . . . . . . . . Reactor 1 | . . . . . . . . . . . . . . . . . 2 6 5 5 5 4 5 5 5 4 4 Treads 22 | . 8 28 33 33 33 33 27 29 30 30 30 29 20 20 19 18 13 12 16 22 16 16 20 20 20 9 . Leg 1 | . 19 . . . . . . . . . . . . . . . 4 6 2 . . . . . . 9 9 Device 14 | . . . 9 11 11 11 13 15 7 13 15 15 20 26 25 25 11 6 4 10 11 14 13 16 10 11 15 Storage 8 | . 14 14 11 11 11 11 9 7 7 7 7 7 6 6 6 6 7 12 13 11 11 11 14 10 10 9 4 Processor 4 | . . . 1 . . . . 4 7 7 7 7 5 6 6 6 6 6 4 . . . . 2 5 2 . Protection 8 | . 12 13 10 11 11 11 13 7 7 6 7 6 6 6 6 6 11 12 13 16 15 6 2 1 5 4 3 Energy Cannon 8 | . . . . . . . 7 14 12 13 1 14 12 7 8 11 6 12 11 10 8 10 10 14 10 11 9 Ballistic Gun 3 | . 27 18 19 17 11 11 5 . . . . . . . . . . . . . . . . . . . . Launcher 1 | . . 9 1 4 11 2 1 . 2 1 . . . 5 3 . 1 . . . 1 . . 1 8 . . Naked Turns . | . . . . . . . . . . . . . . . . . . . . . . . . . . . . Heaviest Build 247 | 11 100 100 107 110 110 110 125 132 126 127 127 133 150 138 138 139 225 225 232 236 221 224 224 247 247 242 96 Greatest Support 220 | 20 40 40 60 60 60 60 60 86 88 91 91 96 110 108 108 148 148 120 166 166 220 220 220 214 206 206 80 Greatest Overweight (x) 46 | . 4 2 1 1 1 1 2 1 1 1 1 1 1 1 1 46 7 1 1 1 2 1 1 1 1 7 1 Average Overweight (x) 1 | . 1 2 1 1 1 1 1 1 1 1 1 1 1 1 1 2 . 1 1 1 . . . 1 1 1 . Largest Inventory Capacity 30 | . 25 25 25 25 25 25 25 25 25 25 25 25 25 25 25 25 30 30 30 30 30 30 30 30 30 30 5 Average Capacity 25 | . 19 25 25 25 25 25 25 25 25 25 25 25 25 25 25 25 22 30 30 30 30 30 30 30 30 27 5 Most Carried 30 | . 21 24 25 25 25 25 25 25 25 25 25 25 25 25 25 25 30 29 30 30 30 30 30 30 28 30 5 Average Carried 23 | . 14 20 24 24 25 24 24 24 24 24 25 24 24 24 24 24 20 29 28 28 29 28 28 29 27 22 4 Final Capacity 30 | 8 25 25 25 25 25 25 25 25 25 25 25 25 25 25 25 25 30 30 30 30 30 30 30 30 30 5 5 Final Carried 30 | 6 21 24 25 25 25 25 25 25 24 25 25 22 24 25 25 25 29 29 30 29 28 30 29 28 28 5 2 Class Distribution -------------------- 76% | Mutant 10% | Hauler-Mutant 9% | Hauler-Golem Dominant Class ---------------- Mutant | -10/Materials Mutant | -10/Mines Mutant | -9/Materials Mutant | -9/Mines Mutant | -9/Exiles Mutant | -8/Mines Mutant | -8/Materials Mutant | -7/Factory Mutant | -7/Lower Caves Mutant | -7/Lower Caves Mutant | -7/Data Miner Mutant | -6/Proximity Caves Mutant | -6/Factory Mutant | -6/Lower Caves Mutant | -6/Lower Caves Mutant | -6/Zion Mutant | -6/Deep Caves Hauler-Mutant | -5/Proximity Caves Hauler-Mutant | -5/Factory Hauler-Mutant | -5/Extension Hauler-Mutant | -5/Cetus Hauler-Golem | -5/Archives Hauler-Golem | -5/Hub_04(d) Hauler-Golem | -4/Factory Hauler-Golem | -4/Waste Hauler-Golem | -4/Factory Golem | -4/Armory Resources | -11 -10 -10 -9 -9 -9 -8 -8 -7 -7 -7 -7 -6 -6 -6 -6 -6 -6 -5 -5 -5 -5 -5 -5 -4 -4 -4 -4 ----------- Run | Jun Mat Min Mat Min Exi Min Mat Fac Low Low Dat Pro Fac Low Low Zio Dee Pro Fac Ext Cet Arc Hub Fac Was Fac Arm Matter Collected 7269 | 200 433 175 872 176 . 102 43 678 233 423 . 281 361 118 60 147 718 276 83 135 227 82 250 191 583 422 . Remotely . | . . . . . . . . . . . . . . . . . . . . . . . . . . . . Salvage Created 19637 | . 830 211 1167 291 . 78 206 2084 727 677 . 398 1558 282 98 . 1556 359 663 891 492 417 2342 985 1193 2027 105 Parts 852 | . 45 24 88 17 . 4 11 88 25 25 . 24 95 9 8 . 36 20 25 33 14 24 105 43 1 82 6 Haulers Intercepted 6 | . 2 . 1 . . . . . . . . . . . . . . . . 1 . . 2 . . . . Recyclers Shooed 11 | . 1 . 4 . . . 1 1 . . . . 2 . . . . . . 1 . . . . . 1 . Parts Field Recycled . | . . . . . . . . . . . . . . . . . . . . . . . . . . . . Retrieved Matter . | . . . . . . . . . . . . . . . . . . . . . . . . . . . . Parts Self-Destructed 74 | . . . . . . . . . 5 16 . 24 . 3 6 . . 20 . . . . . . . . . Prevented 37 | . . . . . . . . . 18 5 . 5 . 9 . . . . . . . . . . . . . Kills | -11 -10 -10 -9 -9 -9 -8 -8 -7 -7 -7 -7 -6 -6 -6 -6 -6 -6 -5 -5 -5 -5 -5 -5 -4 -4 -4 -4 ------- Run | Jun Mat Min Mat Min Exi Min Mat Fac Low Low Dat Pro Fac Low Low Zio Dee Pro Fac Ext Cet Arc Hub Fac Was Fac Arm Combat Hostiles Destroyed 379 | . 16 16 32 8 . 2 4 40 15 22 . 14 29 4 1 . 58 8 10 9 7 1 28 16 6 31 2 Melee 1 | . . . . . . . . . . . . . . . . . . . . . . . 1 . . . . Guns 68 | . 16 6 20 4 . . 4 . . . . . . . . . 5 . . . . . . . . 13 . Cannons 149 | . . . . . . . . 33 1 7 . 5 19 . 1 . 1 8 9 9 1 1 27 13 1 11 2 AOE 141 | . . 10 12 4 . 2 . 5 10 15 . 7 8 3 . . 48 . 1 . 2 . . 3 5 6 . Classes Destroyed 25 | . 6 1 3 2 . . . 2 1 . . 1 2 . 1 . 4 . . 1 . . . . 1 . . Worker 15 | . . . 1 2 . 1 . . . . . . 3 . . . . . 2 . . . 4 . . 2 . Builder 17 | . 1 . 1 . . . . . . . . . 5 . . . . . 2 1 . . 4 1 . 2 . Tunneler 7 | . . 2 1 1 . 1 . . . . . . 1 . . . . . . . . . . 1 . . . Hauler 6 | . 2 . 1 . . . . . . . . . . . . . . . . 1 . . 2 . . . . Recycler 6 | . 1 . 1 2 . . . . . . . . . . . . . . . . . . 1 . . 1 . Operator 14 | . . . 1 . . . . . . . . . 1 . . . . . . 1 . 9 1 1 . . . Drone 4 | . . . . . . . . . . . . 2 . . . . . 2 . . . . . . . . . Watcher 17 | . 3 . 3 . . . 1 5 . . . . 3 . . . . . . 1 . . 1 . . . . Swarmer 77 | . 3 13 11 4 . . . 10 4 5 . 8 8 . . . . . 1 . . . . 3 . 7 . Grunt 139 | . 13 3 14 2 . 2 2 17 9 14 . 2 9 3 . . . 2 4 7 3 . 17 6 . 10 . Brawler 8 | . . . . 1 . . . 1 . . . . . 1 . . . . 2 . 1 . 1 . . 1 . Duelist 5 | . . . . . . . . . 2 2 . . . . . . . 1 . . . . . . . . . Researcher 1 | . . . . . . . . . . . . . . . 1 . . . . . . . . . . . . Sentry 30 | . . . 7 . . . 2 5 . 1 . 1 2 . . . . 1 3 1 . 1 3 2 . 1 . Demolisher 1 | . . . . 1 . . . . . . . . . . . . . . . . . . . . . . . Specialist 3 | . . . . . . . . . . . . . 1 . . . . . . . . . . . . 2 . Hunter 11 | . . . . . . . . 1 . . . . 2 . . . . . . . . . 2 2 . 4 . Programmer 29 | . . . . . . . . 6 . . . 1 6 . 1 . . 2 . . . . 3 3 . 5 2 Heavy 3 | . . . . . . . . . . . . . 1 . . . . . . . . . 1 . . 1 . Behemoth 2 | . . . . . . . . . . . . . . . . . . . . 1 . . 1 . . . . Compactor 6 | . . . . . . . . . . . . . . . . . . . . . . . . . 6 . . Cetus Guard 3 | . . . . . . . . . . . . . . . . . . . . . 3 . . . . . . Z-Light 11 | . . . . . . . . . . . . . . . . . 11 . . . . . . . . . . Assembler 2 | . . . . . . . . . . . . . . . . . 2 . . . . . . . . . . Assembled 43 | . . . . . . . . . . . . . . . . . 43 . . . . . . . . . . Golem 3 | . . . . . . . . . . . . . . . . . 3 . . . . . . . . . . Thug 1 | . . . . . . . . . . . . . . . . . . . . 1 . . . . . . . Butcher 1 | . . . . . . . . . . . . . . . . . . . . 1 . . . . . . . Best Kill Streak 39 | . 5 3 8 5 . 3 4 4 4 5 . 3 11 4 1 . 39 3 6 2 3 6 7 4 3 7 2 Combat Bots Only 37 | . 3 3 6 4 . 2 4 4 4 5 . 3 6 4 1 . 37 3 3 2 3 1 4 3 3 5 2 Max Kills in Single Turn 15 | . 1 3 5 3 . 1 1 1 2 3 . 3 6 1 1 . 15 1 6 2 1 1 4 2 2 4 1 Gunslinging . | . . . . . . . . . . . . . . . . . . . . . . . . . . . . Exploded 14 | . . 3 4 3 . 1 . 1 2 3 . 3 4 1 . . 14 . 1 . 1 . . 2 2 3 . Melee 1 | . . . . . . . . . . . . . . . . . . . . . . . 1 . . . . Uniques/NPCs Destroyed 2 | . . . . . . . . . . . . . . . . . 1 . . . 1 . . . . . . Z-Imprinter (-6/Deep Caves) A7 (-5/Cetus) Combat | -11 -10 -10 -9 -9 -9 -8 -8 -7 -7 -7 -7 -6 -6 -6 -6 -6 -6 -5 -5 -5 -5 -5 -5 -4 -4 -4 -4 -------- Run | Jun Mat Min Mat Min Exi Min Mat Fac Low Low Dat Pro Fac Low Low Zio Dee Pro Fac Ext Cet Arc Hub Fac Was Fac Arm Damage Taken 27829 | . 617 348 818 429 . 219 108 2070 241 582 . 631 1627 66 21 . 1553 224 1346 588 489 45 4253 855 758 6792 3149 Core 2516 | . 139 79 132 8 . 46 . 140 17 35 . 48 155 . . . 113 . 157 54 . . 237 39 37 554 526 Absorbed by Shields 2111 | . . . 204 56 . 46 39 566 . . . . 558 25 8 . 299 . . 99 211 . . . . . . Reduced by Siege Mode 609 | . . . . . . . . . . . . . 6 4 . . 93 32 . . . . 296 . . 178 . Redirected to Shielding 119 | . . . . . . . 14 . . . . . 51 . . . 54 . . . . . . . . . . Regen/Repaired (Parts) 127 | . . . . . . . . 127 . . . . . . . . . . . . . . . . . . . Core Remaining (%) 64 | 100 . 12 . . . 53 100 . . . . 65 . . . . . 68 . . . . 55 . . . . Volleys Fired 1117 | . 65 19 67 13 . 10 10 107 20 37 . 27 119 5 3 3 114 23 36 49 27 36 116 32 17 118 44 Largest 4 | . 2 2 2 2 . 2 2 2 2 2 . 2 2 1 2 1 2 2 2 2 2 2 2 3 4 3 3 Hottest 180 | . 46 46 46 98 . 98 150 150 110 180 . 110 180 36 180 90 125 50 50 50 150 60 105 75 160 176 75 Shots Fired 1881 | . 129 30 123 22 . 17 19 206 25 55 . 48 181 5 5 3 149 46 72 93 37 53 196 88 34 195 50 Gun 467 | . 128 22 112 18 . 14 14 . . . . . . . . . 75 . . . . . . . . 84 . Cannon 1246 | . . . . . . . 4 196 8 34 . 40 166 . 5 3 46 46 72 93 35 53 196 86 7 106 50 Launcher 168 | . 1 8 11 4 . 3 1 10 17 21 . 8 15 5 . . 28 . . . 2 . . 2 27 5 . Special . | . . . . . . . . . . . . . . . . . . . . . . . . . . . . Kinetic 293 | . 128 22 112 17 . 7 7 . . . . . . . . . . . . . . . . . . . . Thermal 1301 | . . . . 1 . 7 11 196 8 34 . 40 166 . 5 3 46 46 72 93 15 53 196 86 7 166 50 Explosive 105 | . 1 8 11 4 . 3 1 . . 15 . 2 1 . . . 23 . . . 2 . . 2 27 5 . Electromagnetic 182 | . . . . . . . . 10 17 6 . 6 14 5 . . 80 . . . 20 . . . . 24 . Robot Hit Streak 45 | . 12 12 9 4 . 5 10 12 10 14 . 13 11 16 19 . 20 6 22 24 16 16 45 27 13 27 4 Robot Miss Streak 5 | . 3 2 4 3 . 5 1 3 5 2 . 2 3 . . . 3 3 2 1 2 2 5 3 1 3 2 Penetration Max . | . . . . . . . . . . . . . . . . . . . . . . . . . . . . Secondary Targets 11 | . 2 1 5 . . . 1 . . . . . . . . . 2 . . . . . . . . . . Max Gunslinging Chain 1 | . 1 1 1 . . . 1 . . . . . . . . . 1 . . . . . . . . . . Shots Hit Robots 1160 | . 89 20 95 14 . 10 17 121 10 35 . 30 75 5 3 . 77 16 48 65 30 41 124 54 27 147 7 Core Hits 760 | . 42 24 70 17 . 9 9 63 26 42 . 18 51 8 2 . 135 10 22 22 19 16 53 28 11 60 3 Critical Kills 3 | . . . . . . . . 1 . . . . . . 1 . . . . . 1 . . . . . . Critical Parts Destroyed 3 | . 2 1 . . . . . . . . . . . . . . . . . . . . . . . . . Critical Strikes 13 | . 2 1 . . . . 1 1 . . . . . . 1 . 2 . . . 1 . . . . 4 . Burn 5 | . . . . . . . 1 . . . . . . . . . . . . . . . . . . 4 . Meltdown 3 | . . . . . . . . 1 . . . . . . 1 . . . . . 1 . . . . . . Destroy 3 | . 2 1 . . . . . . . . . . . . . . . . . . . . . . . . . Corrupt 2 | . . . . . . . . . . . . . . . . . 2 . . . . . . . . . . Melee Attacks 5 | . . . . . . . . . . . . . . . . 5 . . . . . . . . . . . Impact 5 | . . . . . . . . . . . . . . . . 5 . . . . . . . . . . . Slashing . | . . . . . . . . . . . . . . . . . . . . . . . . . . . . Piercing . | . . . . . . . . . . . . . . . . . . . . . . . . . . . . Sneak Attacks . | . . . . . . . . . . . . . . . . . . . . . . . . . . . . Combat Hostiles . | . . . . . . . . . . . . . . . . . . . . . . . . . . . . Follow-up Attacks . | . . . . . . . . . . . . . . . . . . . . . . . . . . . . Damage Inflicted 57629 | . 1135 830 2455 520 . 507 327 3976 1210 2799 . 1518 4518 362 112 . 6068 788 3000 3441 1410 1616 6742 2895 3673 7256 471 Guns 6474 | . 1111 324 1475 206 . 144 247 . . . . . . . . . 1161 . . . . . . . . 1806 . Cannons 30422 | . . . . . . . 75 3391 25 829 . 806 2912 . 112 . 137 788 2240 3347 838 1616 6223 2614 287 3711 471 Explosions 20321 | . . 462 853 284 . 333 . 583 1185 1970 . 712 1585 362 . . 4770 . 760 . 572 . 491 281 3386 1732 . Melee . | . . . . . . . . . . . . . . . . . . . . . . . . . . . . Ramming 412 | . 24 44 127 30 . 30 5 2 . . . . 21 . . . . . . 94 . . 28 . . 7 . Kinetic 3302 | . 1111 324 1475 206 . 84 102 . . . . . . . . . . . . . . . . . . . . Thermal 32543 | . . . . . . 60 220 3391 54 1003 . 806 3379 . 112 . 398 788 2584 3347 351 1616 6223 2614 287 4839 471 Explosive 14673 | . . 462 853 284 . 333 . . . 1557 . 318 218 . . . 4261 . 416 . 572 . . 281 3386 1732 . Electromagnetic 6699 | . . . . . . . . 583 1156 239 . 394 900 362 . . 1409 . . . 487 . 491 . . 678 . Impact . | . . . . . . . . . . . . . . . . . . . . . . . . . . . . Slashing . | . . . . . . . . . . . . . . . . . . . . . . . . . . . . Piercing . | . . . . . . . . . . . . . . . . . . . . . . . . . . . . Highest Corruption 68 | . . . . . . . . 3 1 1 1 2 . . . . . . 7 7 26 26 36 . 30 31 68 Average Corruption 8 | . . . . . . . . 2 1 1 1 1 . . . . . . 4 7 21 20 16 . 18 29 36 Corruption Purged 22 | . . . . . . . . 3 . . . . . . . . . . . . . 14 . . . 5 . Corruption Blocked . | . . . . . . . . . . . . . . . . . . . . . . . . . . . . Effects 458 | . . . . . . . . 48 19 14 2 20 . . . . . . 6 57 22 30 87 . 16 84 53 Message Errors 102 | . . . . . . . . 13 9 . . 3 . . . . . . 2 16 4 4 27 . 4 11 9 Matter Fused 107 | . . . . . . . . 12 3 5 1 4 . . . . . . 2 14 7 9 17 . 4 11 18 Heat Flow Errors 54 | . . . . . . . . 5 2 2 1 4 . . . . . . 1 5 1 5 9 . . 11 8 Energy Discharges 41 | . . . . . . . . 4 1 2 . 2 . . . . . . . 8 1 3 7 . 3 9 1 Parts Rejected 2 | . . . . . . . . . . . . 1 . . . . . . . . . . . . . 1 . Parts Fused 3 | . . . . . . . . . 1 . . . . . . . . . . 1 . . . . . 1 . Data Loss (minor) 51 | . . . . . . . . 5 1 1 . 3 . . . . . . . 6 1 2 8 . 3 13 8 Data Loss (major) 23 | . . . . . . . . 4 . 1 . . . . . . . . 1 4 1 . 2 . 1 7 2 Misfires 22 | . . . . . . . . 3 2 2 . 2 . . . . . . . 1 2 3 3 . 1 3 . Alerts 10 | . . . . . . . . 2 . 1 . 1 . . . . . . . . 2 1 . . . 1 2 Misdirections 7 | . . . . . . . . . . . . . . . . . . . . . 1 . 3 . . 3 . Weapon Failures 36 | . . . . . . . . . . . . . . . . . . . . 2 2 3 11 . . 13 5 Overload Shots 9 | . . . . . . . . . . 2 . . 1 . . . . . . . 1 . 5 . . . . Effects 1 | . . . . . . . . . . . . . . . . . . . . . 1 . . . . . . Energy Bleed 1 | . . . . . . . . . . . . . . . . . . . . . 1 . . . . . . Overflow Damage 2029 | . . . 108 . . 20 3 60 6 80 . 65 268 . . . 119 2 120 135 . 111 202 156 . 525 49 Projectiles 1210 | . . . . . . . 3 60 . 9 . 6 113 . . . . 2 35 109 . 111 185 156 . 372 49 Explosions 793 | . . . 108 . . 20 . . 6 71 . 59 155 . . . 119 . 85 . . . 17 . . 153 . Melee 26 | . . . . . . . . . . . . . . . . . . . . 26 . . . . . . . Knockbacks 5 | . . 1 . 3 . . . . . . . . . . . . . . . 1 . . . . . . . Impact 5 | . . 1 . 3 . . . . . . . . . . . . . . . 1 . . . . . . . Kinetic . | . . . . . . . . . . . . . . . . . . . . . . . . . . . . Secondary . | . . . . . . . . . . . . . . . . . . . . . . . . . . . . Self-Inflicted Damage 1497 | . . 23 29 . . 42 5 63 68 29 . . 17 . . . . . 200 . 18 . 177 7 584 235 . Shots 37 | . . 1 1 . . 1 1 3 4 1 . . 1 . . . . . 3 . 1 . 2 1 12 5 . Rammed 37 | . 4 4 10 3 . 1 1 1 . . . . 2 . . . . . . 7 . . 1 . . 3 . Targets Rammed 47 | . 6 6 10 6 . 2 1 1 . . . . 3 . . . . . . 7 . . 2 . . 3 . Kicked 2 | . 2 . . . . . . . . . . . . . . . . . . . . . . . . . . Crushed 8 | . . 2 . 3 . 1 . . . . . . 1 . . . . . . . . . 1 . . . . Highest Temperature 432 | . 29 70 16 45 . 357 265 315 203 253 248 285 387 . 36 . 252 27 230 252 418 245 252 2 108 432 210 Average Temperature 81 | . 8 31 3 19 . 155 115 91 48 75 142 92 80 . 24 . 75 12 57 57 192 93 75 2 62 118 111 Received Heat Transfer 4772 | . 258 135 332 9 . 95 55 666 72 228 . 75 172 30 . . 237 153 288 245 42 9 798 69 . 804 . Effects 9 | . . . . . . . 1 2 . . . 1 4 . . . . . . . 1 . . . . . . Shutdowns 1 | . . . . . . . . . . . . . 1 . . . . . . . . . . . . . . Interference 7 | . . . . . . . 1 2 . . . 1 3 . . . . . . . . . . . . . . Damage (minor) 1 | . . . . . . . . . . . . . . . . . . . . . 1 . . . . . . Siege Activations 35 | . . . . . . . . . . . . . 5 1 1 . 11 4 . . 2 . 6 . . 5 . Total Turns 528 | . . . . . . . . . . . . . 86 9 1 . 171 30 . . 13 . 117 . . 101 . Longest Duration 55 | . . . . . . . . . . . . . 55 9 1 . 33 14 . . 11 . 42 . . 38 . Robots Corrupted 18 | . . . . . . . . . 4 . . 2 3 1 . . 4 . . . 3 . . . . 1 . Combat Hostiles 17 | . . . . . . . . . 4 . . 2 2 1 . . 4 . . . 3 . . . . 1 . Parts Fried 50 | . . . . . . . . 5 11 1 . 2 9 1 . . 7 . . . 4 . 4 . . 6 . Impact Corruptions 1 | . . . . . . . . . . . . . . . . . . . . 1 . . . . . . . Robots Melted 4 | . . . . . . . . 2 . . . . . . 1 . . . . . 1 . . . . . . Combat Hostiles 3 | . . . . . . . . 2 . . . . . . . . . . . . 1 . . . . . . Parts Melted 47 | . . . . . . . 1 12 . 3 . 2 2 . 2 . . . 3 3 . 3 8 3 . 5 . Heat Transferred 26658 | . . . . . . 111 444 4763 137 1378 . 1155 2810 . 100 . 136 400 1550 1837 400 1575 3575 1500 150 4437 200 Parts Sabotaged . | . . . . . . . . . . . . . . . . . . . . . . . . . . . . Parts Stolen . | . . . . . . . . . . . . . . . . . . . . . . . . . . . . Parts Stripped . | . . . . . . . . . . . . . . . . . . . . . . . . . . . . Power Chain Reactions 15 | . . . . . . . . . 3 4 . . 3 1 . . 3 . . . . . 1 . . . . Missiles Intercepted . | . . . . . . . . . . . . . . . . . . . . . . . . . . . . Alert | -11 -10 -10 -9 -9 -9 -8 -8 -7 -7 -7 -7 -6 -6 -6 -6 -6 -6 -5 -5 -5 -5 -5 -5 -4 -4 -4 -4 ------- Run | Jun Mat Min Mat Min Exi Min Mat Fac Low Low Dat Pro Fac Low Low Zio Dee Pro Fac Ext Cet Arc Hub Fac Was Fac Arm Peak Influence 1484 | . 286 189 563 272 . 83 178 844 . . . . 775 . . . . . 877 665 1108 533 1484 1437 647 1209 589 Initial 750 | . . 33 . 197 . . . 9 . . . . 72 . . . . . 750 385 372 363 116 741 461 445 587 Average 327 | . 134 72 227 96 . 4 67 284 . . . . 233 . . . . . 719 457 720 415 479 990 602 719 458 Maximum Alert Level 4 | . 1 . 2 1 . . . 3 . . . . 3 . . . . . 3 2 4 2 4 4 2 4 2 Low Security (%) 48 | . 94 100 45 90 . 100 100 50 . . . . 65 . . . . . . . . . 16 . . . 9 Level 1 15 | . 5 . 35 9 . . . 18 . . . . 8 . . . . . . 29 9 39 40 . . . 29 Level 2 22 | . . . 19 . . . . 24 . . . . 9 . . . . . 27 70 28 60 18 5 100 42 60 Level 3 12 | . . . . . . . . 6 . . . . 16 . . . . . 72 . 59 . 20 58 . 54 . Level 4 1 | . . . . . . . . . . . . . . . . . . . . . 2 . 3 36 . 2 . Level 5 . | . . . . . . . . . . . . . . . . . . . . . . . . . . . . High Security . | . . . . . . . . . . . . . . . . . . . . . . . . . . . . Max Security . | . . . . . . . . . . . . . . . . . . . . . . . . . . . . Squads Dispatched 68 | . 4 . 7 . . . 2 14 . . . . 13 . . . . . 2 2 . . 8 5 . 6 5 Investigation 21 | . 3 . 3 . . . 1 5 . . . . 2 . . . . . 1 1 . . 2 2 . . 1 Extermination 20 | . . . . . . . . 6 . . . . 6 . . . . . . . . . 2 2 . 2 2 Reinforcement 23 | . 1 . 4 . . . 1 1 . . . . 5 . . . . . 1 1 . . 4 1 . 4 . Assault 3 | . . . . . . . . 1 . . . . . . . . . . . . . . . . . . 2 Garrison 1 | . . . . . . . . 1 . . . . . . . . . . . . . . . . . . . Intercept . | . . . . . . . . . . . . . . . . . . . . . . . . . . . . Searches Triggered 2 | . . . . . . . . . . . . . . . . . . . 2 . . . . . . . . Data Miner Redirects 5 | . . . . . . . . . . . . . 1 . . . . . . . . . 1 1 . . 2 Construction Impeded 5 | . . . . . . . . . . . . . 2 . . . . . 1 . . . 1 . . 1 . Haulers Reinforced 1 | . . . . . . . . . . . . . . . . . . . . . . . . . . 1 . Active Scanning Responses . | . . . . . . . . . . . . . . . . . . . . . . . . . . . . Cargo Convoy Interrupts . | . . . . . . . . . . . . . . . . . . . . . . . . . . . . Stealth | -11 -10 -10 -9 -9 -9 -8 -8 -7 -7 -7 -7 -6 -6 -6 -6 -6 -6 -5 -5 -5 -5 -5 -5 -4 -4 -4 -4 --------- Run | Jun Mat Min Mat Min Exi Min Mat Fac Low Low Dat Pro Fac Low Low Zio Dee Pro Fac Ext Cet Arc Hub Fac Was Fac Arm Distress Signals 22 | . 2 . 3 . . . 1 3 . . . . 2 . . . . 1 . 3 2 . 2 2 . 1 . Communications Jammed 335 | . . . . . . . . . . . . . 9 . . . . . . 313 . . . . . 13 . Distress Signals 323 | . . . . . . . . . . . . . . . . . . . . 313 . . . . . 10 . Times Spotted 539 | . 24 17 45 10 . 3 7 61 13 24 . 20 44 4 1 . 36 10 11 27 22 21 44 16 6 71 2 Peak Tracking Total 36 | . 5 3 6 4 . 3 2 6 4 5 . 4 7 4 . . 36 3 3 7 5 3 7 5 3 16 2 Tactical Retreats 34 | . 2 2 . 1 . . . 2 3 4 . . 2 . . . . . 1 1 . . 4 . . 12 . Traps | -11 -10 -10 -9 -9 -9 -8 -8 -7 -7 -7 -7 -6 -6 -6 -6 -6 -6 -5 -5 -5 -5 -5 -5 -4 -4 -4 -4 ------- Run | Jun Mat Min Mat Min Exi Min Mat Fac Low Low Dat Pro Fac Low Low Zio Dee Pro Fac Ext Cet Arc Hub Fac Was Fac Arm Traps Triggered 20 | . 1 . 2 . . . . 6 . . . . 2 . . . . . 2 3 . . 1 1 . 2 . Indirectly 1 | . . . . . . . . . . . . . 1 . . . . . . . . . . . . . . Trap Hack Attempts . | . . . . . . . . . . . . . . . . . . . . . . . . . . . . Triggered . | . . . . . . . . . . . . . . . . . . . . . . . . . . . . Disarmed . | . . . . . . . . . . . . . . . . . . . . . . . . . . . . Reprogrammed . | . . . . . . . . . . . . . . . . . . . . . . . . . . . . Reused 2 | . . . . . . . . . . . . . . . . . . . . . . . 2 . . . . Traps Reconfigurated 16 | . . . . . . . . . . . . . . . . . . . . 5 . . 7 3 . 1 . Traps Extracted . | . . . . . . . . . . . . . . . . . . . . . . . . . . . . Installed . | . . . . . . . . . . . . . . . . . . . . . . . . . . . . Triggered 3 | . . . . . . . . . . . . . . 1 . . . . . . . . 2 . . . . Machines | -11 -10 -10 -9 -9 -9 -8 -8 -7 -7 -7 -7 -6 -6 -6 -6 -6 -6 -5 -5 -5 -5 -5 -5 -4 -4 -4 -4 ---------- Run | Jun Mat Min Mat Min Exi Min Mat Fac Low Low Dat Pro Fac Low Low Zio Dee Pro Fac Ext Cet Arc Hub Fac Was Fac Arm Machines Disabled 54 | . . . 4 . . . . 4 . . . . 5 . . 3 1 . 11 2 5 2 14 . . 3 . Max in Single Turn 7 | . . . 2 . . . . 2 . . . . 4 . . 1 1 . 7 1 1 1 6 . . 2 . Garrison Access 6 | . . . . . . . . 1 . . . . 1 . . . . . . . . . 2 2 . . . Network Hub 2 | . . . . . . . . . . . . . . . . . . . . . . . 2 . . . . Machines Repaired . | . . . . . . . . . . . . . . . . . . . . . . . . . . . . Machines Sabotaged . | . . . . . . . . . . . . . . . . . . . . . . . . . . . . Overloaded Fab Kills . | . . . . . . . . . . . . . . . . . . . . . . . . . . . . Hacking | -11 -10 -10 -9 -9 -9 -8 -8 -7 -7 -7 -7 -6 -6 -6 -6 -6 -6 -5 -5 -5 -5 -5 -5 -4 -4 -4 -4 --------- Run | Jun Mat Min Mat Min Exi Min Mat Fac Low Low Dat Pro Fac Low Low Zio Dee Pro Fac Ext Cet Arc Hub Fac Was Fac Arm Machines Accessed 50 | . 7 . 6 1 1 . 4 10 . . 4 . 5 . . . . . 1 3 . . 4 2 . 1 1 Terminals 22 | . 5 . 5 . . . 3 2 . . . . 1 . . . . . . 3 . . 2 . . 1 . Fabricators 7 | . . . . . . . . 3 . . . . 2 . . . . . 1 . . . . . . . 1 Repair Stations 2 | . . . . . . . . 1 . . . . 1 . . . . . . . . . . . . . . Recycling Units 5 | . 2 . 1 . . . 1 1 . . . . . . . . . . . . . . . . . . . Scanalyzers 1 | . . . . . . . . 1 . . . . . . . . . . . . . . . . . . . Garrison Access 7 | . . . . . . . . 2 . . . . 1 . . . . . . . . . 2 2 . . . Total Hacks 132 | . 12 . 18 1 1 . 14 24 . . 29 . 7 . . . . . 3 6 . . 9 4 . 2 2 Successful 74 | . 5 . 1 1 1 . 10 11 . . 29 . 3 . . . . . 3 1 . . 5 2 . . 2 Failed 57 | . 7 . 17 . . . 3 13 . . . . 4 . . . . . . 5 . . 4 2 . 2 . Catastrophic 12 | . 3 . 3 . . . . 1 . . . . 3 . . . . . . 2 . . . . . . . Database Lockouts 1 | . . . . . . . 1 . . . . . . . . . . . . . . . . . . . . Manual 70 | . 12 . 18 . . . 16 8 . . . . . . . . . . 2 2 . . 6 4 . 2 . Terminals 55 | . 10 . 15 . . . 12 4 . . . . 1 . . . . . . 6 . . 5 . . 2 . Fabricators 16 | . . . . . . . . 8 . . . . 3 . . . . . 3 . . . . . . . 2 Repair Stations 6 | . . . . . . . . 4 . . . . 2 . . . . . . . . . . . . . . Recycling Units 9 | . 2 . 3 . . . 2 2 . . . . . . . . . . . . . . . . . . . Scanalyzers 2 | . . . . . . . . 2 . . . . . . . . . . . . . . . . . . . Garrison Access 13 | . . . . . . . . 4 . . . . 1 . . . . . . . . . 4 4 . . . Terminal Hacks 41 | . 3 . . 1 1 . 4 . . . 29 . . . . . . . . 1 . . 2 . . . . Record 12 | . . . . . 1 . . . . . 11 . . . . . . . . . . . . . . . . Part Schematic 12 | . 2 . . . . . . . . . 10 . . . . . . . . . . . . . . . . Robot Schematic 5 | . . . . . . . . . . . 5 . . . . . . . . . . . . . . . . Robot Analysis 3 | . 1 . . . . . 2 . . . . . . . . . . . . . . . . . . . . Prototype ID Bank 3 | . . . . . . . . . . . 3 . . . . . . . . . . . . . . . . Open Door 1 | . . . . 1 . . . . . . . . . . . . . . . . . . . . . . . Terminal Index 2 | . . . . . . . 1 . . . . . . . . . . . . . . . 1 . . . . Alert Level 2 | . . . . . . . . . . . . . . . . . . . . 1 . . 1 . . . . Locate Traps 1 | . . . . . . . 1 . . . . . . . . . . . . . . . . . . . . Fabricator Hacks 7 | . . . . . . . . 3 . . . . 1 . . . . . 1 . . . . . . . 2 Network Status 1 | . . . . . . . . 1 . . . . . . . . . . . . . . . . . . . Load Schematic 3 | . . . . . . . . 1 . . . . . . . . . . 1 . . . . . . . 1 Build 3 | . . . . . . . . 1 . . . . 1 . . . . . . . . . . . . . 1 Repair Station Hacks 4 | . . . . . . . . 3 . . . . 1 . . . . . . . . . . . . . . Scan Component 3 | . . . . . . . . 2 . . . . 1 . . . . . . . . . . . . . . Repair 1 | . . . . . . . . 1 . . . . . . . . . . . . . . . . . . . Recycling Unit Hacks . | . . . . . . . . . . . . . . . . . . . . . . . . . . . . Scanalyzer 1 | . . . . . . . . 1 . . . . . . . . . . . . . . . . . . . Insert Component 1 | . . . . . . . . 1 . . . . . . . . . . . . . . . . . . . Garrison Access Hacks 2 | . . . . . . . . 1 . . . . 1 . . . . . . . . . . . . . . Seal Access 2 | . . . . . . . . 1 . . . . 1 . . . . . . . . . . . . . . Unauthorized Hacks 19 | . 2 . 1 . . . 6 3 . . . . . . . . . . 2 . . . 3 2 . . . Terminals 7 | . . . . . . . 5 1 . . . . . . . . . . . . . . 1 . . . . Track 2 | . . . . . . . 2 . . . . . . . . . . . . . . . . . . . . Botnet 3 | . . . . . . . 2 1 . . . . . . . . . . . . . . . . . . . Operators 2 | . . . . . . . 1 . . . . . . . . . . . . . . . 1 . . . . Fabricators 3 | . . . . . . . . 1 . . . . . . . . . . 2 . . . . . . . . Report 1 | . . . . . . . . 1 . . . . . . . . . . . . . . . . . . . Liberate 1 | . . . . . . . . . . . . . . . . . . . 1 . . . . . . . . Recompile 1 | . . . . . . . . . . . . . . . . . . . 1 . . . . . . . . Repair Stations . | . . . . . . . . . . . . . . . . . . . . . . . . . . . . Recycling Units 5 | . 2 . 1 . . . 1 1 . . . . . . . . . . . . . . . . . . . Tunnel 5 | . 2 . 1 . . . 1 1 . . . . . . . . . . . . . . . . . . . Scanalyzers . | . . . . . . . . . . . . . . . . . . . . . . . . . . . . Garrison Access 4 | . . . . . . . . . . . . . . . . . . . . . . . 2 2 . . . Jam 4 | . . . . . . . . . . . . . . . . . . . . . . . 2 2 . . . Data Cores Recovered 1 | . . . . . . . . . . . . . 1 . . . . . . . . . . . . . . Used . | . . . . . . . . . . . . . . . . . . . . . . . . . . . . Hacking Detections 33 | . 5 . 5 . . . 3 8 . . . . 4 . . . . . . 3 . . 3 . . 1 1 Full Trace Events 4 | . . . . . . . . 2 . . . . . . . . . . . 1 . . . . . . 1 Feedback Events . | . . . . . . . . . . . . . . . . . . . . . . . . . . . . Feedback Blocked . | . . . . . . . . . . . . . . . . . . . . . . . . . . . . Robot Schematics Acquired 7 | . . . . . . . . . . . 5 . . . . 2 . . . . . . . . . . . Robots Built . | . . . . . . . . . . . . . . . . . . . . . . . . . . . . Authchips . | . . . . . . . . . . . . . . . . . . . . . . . . . . . . Time . | . . . . . . . . . . . . . . . . . . . . . . . . . . . . Total Robot Build Rating . | . . . . . . . . . . . . . . . . . . . . . . . . . . . . Part Schematics Acquired 26 | . 1 . . . . . . . . . 10 . . . . 15 . . . . . . . . . . . Parts Built 4 | . . . . . . . . 1 . . . . 2 . . . . . . . . . . . . . 1 Authchips . | . . . . . . . . . . . . . . . . . . . . . . . . . . . . Time 166 | . . . . . . . . 51 . . . . 64 . . . . . . . . . . . . . 51 Total Part Build Rating 18 | . . . . . . . . 1 . . . . 16 . . . . . . . . . . . . . 1 Parts Repaired 1 | . . . . . . . . 1 . . . . . . . . . . . . . . . . . . . Time 26 | . . . . . . . . 26 . . . . . . . . . . . . . . . . . . . Parts Recycled . | . . . . . . . . . . . . . . . . . . . . . . . . . . . . Recycled Matter . | . . . . . . . . . . . . . . . . . . . . . . . . . . . . Retrieved Matter . | . . . . . . . . . . . . . . . . . . . . . . . . . . . . Retrieved Components . | . . . . . . . . . . . . . . . . . . . . . . . . . . . . Parts Scanalyzed . | . . . . . . . . . . . . . . . . . . . . . . . . . . . . Part Schematics Acquired . | . . . . . . . . . . . . . . . . . . . . . . . . . . . . Parts Damaged . | . . . . . . . . . . . . . . . . . . . . . . . . . . . . Bothacking | -11 -10 -10 -9 -9 -9 -8 -8 -7 -7 -7 -7 -6 -6 -6 -6 -6 -6 -5 -5 -5 -5 -5 -5 -4 -4 -4 -4 ------------ Run | Jun Mat Min Mat Min Exi Min Mat Fac Low Low Dat Pro Fac Low Low Zio Dee Pro Fac Ext Cet Arc Hub Fac Was Fac Arm Used RIF Installer . | . . . . . . . . . . . . . . . . . . . . . . . . . . . . Robots Hacked . | . . . . . . . . . . . . . . . . . . . . . . . . . . . . Non-combat . | . . . . . . . . . . . . . . . . . . . . . . . . . . . . Combat . | . . . . . . . . . . . . . . . . . . . . . . . . . . . . Robot Hacks Applied . | . . . . . . . . . . . . . . . . . . . . . . . . . . . . Relay Couplers Released 5 | . . . . . . . . 3 . . . . . . . . . . . . . . 2 . . . . Machine Destruction 5 | . . . . . . . . 3 . . . . . . . . . . . . . . 2 . . . . Fabnet Peak Effective % . | . . . . . . . . . . . . . . . . . . . . . . . . . . . . Robots Rewired 12 | . . . . . . . . . . . . . . . . . . . . 12 . . . . . . . Allies Hacked 1 | . . . . . . . . 1 . . . . . . . . . . . . . . . . . . . Hacks Repelled . | . . . . . . . . . . . . . . . . . . . . . . . . . . . . Allies | -11 -10 -10 -9 -9 -9 -8 -8 -7 -7 -7 -7 -6 -6 -6 -6 -6 -6 -5 -5 -5 -5 -5 -5 -4 -4 -4 -4 -------- Run | Jun Mat Min Mat Min Exi Min Mat Fac Low Low Dat Pro Fac Low Low Zio Dee Pro Fac Ext Cet Arc Hub Fac Was Fac Arm Total Allies 30 | . . . . . . . . 3 . . . 1 . . . . . . . 25 . 1 . . . . . Largest Group 12 | . . . . . . . . 3 . . . 1 1 . . . . . . 12 12 6 5 . . . . Highest-Rated Group 501 | . . . . . . . . 93 . . . 96 96 . . . . . . 501 501 226 162 . . . . Highest-Rated Ally 159 | . . . . . . . . 31 . . . 96 96 . . . . . . 159 159 64 39 . . . . Total Orders 15 | . . . . 1 . 2 . . . . . . . . 3 . . . . . 7 2 . . . . . STAY 5 | . . . . . . . . . . . . . . . . . . . . . 4 1 . . . . . ROAM 1 | . . . . . . . . . . . . . . . 1 . . . . . . . . . . . . FOLLOW 4 | . . . . . . . . . . . . . . . . . . . . . 3 1 . . . . . EXPLORE 2 | . . . . . . . . . . . . . . . 2 . . . . . . . . . . . . RETURN 3 | . . . . 1 . 2 . . . . . . . . . . . . . . . . . . . . . Ally Attacks 379 | . . . . . . 1 . 38 . . . 36 10 . . . . . . 132 106 32 24 . . . . Total Damage 8706 | . . . . . . 2 . 562 . . . 1303 310 . . . . . . 3369 2302 470 388 . . . . Kills 53 | . . . . . . . . 4 . . . 5 2 . . . . . . 21 17 3 1 . . . . Allies Corrupted . | . . . . . . . . . . . . . . . . . . . . . . . . . . . . Allies Melted 2 | . . . . . . . . . . . . . . . 1 . . . . . . . 1 . . . . Intel | -11 -10 -10 -9 -9 -9 -8 -8 -7 -7 -7 -7 -6 -6 -6 -6 -6 -6 -5 -5 -5 -5 -5 -5 -4 -4 -4 -4 ------- Run | Jun Mat Min Mat Min Exi Min Mat Fac Low Low Dat Pro Fac Low Low Zio Dee Pro Fac Ext Cet Arc Hub Fac Was Fac Arm Robot Analysis Total 3 | . 1 . . . . . 2 . . . . . . . . . . . . . . . . . . . . Derelict Logs Recovered 11 | . . 1 . 1 . . . . . . . 2 . 3 2 2 . . . . . . . . . . . Drone Launches 24 | . . . . 1 . 3 . . . . . 4 . . 2 . . . . . . 14 . . . . . Drone Recoveries 19 | . . . . 1 . 2 . . . . . 4 . . 2 . . . . . . 10 . . . . . Exploration | -11 -10 -10 -9 -9 -9 -8 -8 -7 -7 -7 -7 -6 -6 -6 -6 -6 -6 -5 -5 -5 -5 -5 -5 -4 -4 -4 -4 ------------- Run | Jun Mat Min Mat Min Exi Min Mat Fac Low Low Dat Pro Fac Low Low Zio Dee Pro Fac Ext Cet Arc Hub Fac Was Fac Arm Turns Passed 48192 | . 1804 2011 2225 1591 360 1295 543 3804 2155 3387 226 2162 2437 3342 1728 4131 5057 1014 746 1858 476 626 1645 923 391 1370 885 Spaces Moved 17438 | 1 605 604 774 632 151 522 183 1336 863 1354 95 857 788 1349 680 1395 1999 361 250 636 186 192 543 323 138 547 74 Core 284 | . . . . . . . . . . . . . . . . 58 . . . . . . . . . 205 21 Treads 16058 | . 159 604 774 632 151 522 183 1336 863 1354 95 857 788 1349 680 1337 1566 361 250 636 186 192 543 323 138 179 . Legs 1076 | 1 446 . . . . . . . . . . . . . . . 433 . . . . . . . . 143 53 Wheels 20 | . . . . . . . . . . . . . . . . . . . . . . . . . . 20 . Hover . | . . . . . . . . . . . . . . . . . . . . . . . . . . . . Flight . | . . . . . . . . . . . . . . . . . . . . . . . . . . . . Fastest Speed 50 | 120 120 320 240 240 240 240 240 240 236 236 236 236 236 246 246 166 126 250 245 245 163 163 165 240 240 50 50 Average Speed 237 | 120 226 320 240 240 240 240 247 240 236 236 236 236 242 246 246 293 193 250 247 245 195 183 223 243 240 172 143 Slowest Speed 2350 | 120 400 320 240 240 240 240 320 240 240 236 236 238 246 246 246 2350 360 250 250 245 323 243 245 245 240 285 180 Overloaded Moves . | . . . . . . . . . . . . . . . . . . . . . . . . . . . . Propulsion Burnouts . | . . . . . . . . . . . . . . . . . . . . . . . . . . . . Robots Hopped . | . . . . . . . . . . . . . . . . . . . . . . . . . . . . Cave-ins Triggered 13 | . . . . . . . . . . . . . . . . . . . . . . . . . . . 13 Exploration Rate (%) 63 | 2 91 97 77 97 53 96 25 46 92 94 70 93 24 98 67 83 90 52 11 84 65 90 56 8 88 19 2 Regions Visited 27 Branch Regions 18 Pre-discovered Areas 10 | . 2 1 1 1 1 . 1 1 . . 1 . . . 1 . . . . . . . . . . . . Known Exits Taken 13 | . . . . . . . . 1 1 1 1 1 1 1 1 1 1 1 1 . . . 1 . . . . Unknown Exits Taken 12 | 1 1 1 1 1 1 1 1 . . . . . . . . . . . . 1 1 1 . . . 1 . Scrap Searched 23 | . . 1 . 2 . 1 . . 3 4 . 2 . 3 3 3 . 1 . . . . . . . . . Spaces Dug 258 | . 13 24 . 25 . . 11 51 1 21 . 13 17 . 1 3 15 6 23 2 . . 5 . . . 27 Terrain Destroyed 1607 | . 13 47 31 35 . 46 12 72 15 115 . 21 100 . 2 3 126 29 61 12 52 8 377 56 255 77 42 Melee 2 | . . . . . . . . . . . . . . . . 2 . . . . . . . . . . . Projectile 353 | . . . . . . 4 1 26 5 4 . 8 62 . 2 1 35 29 18 12 3 8 52 22 1 18 42 AOE 1252 | . 13 47 31 35 . 42 11 46 10 111 . 13 38 . . . 91 . 43 . 49 . 325 34 254 59 . Terrain Rammed . | . . . . . . . . . . . . . . . . . . . . . . . . . . . . Walls Destroyed . | . . . . . . . . . . . . . . . . . . . . . . . . . . . . Machines Disabled . | . . . . . . . . . . . . . . . . . . . . . . . . . . . . Actions | -11 -10 -10 -9 -9 -9 -8 -8 -7 -7 -7 -7 -6 -6 -6 -6 -6 -6 -5 -5 -5 -5 -5 -5 -4 -4 -4 -4 --------- Run | Jun Mat Min Mat Min Exi Min Mat Fac Low Low Dat Pro Fac Low Low Zio Dee Pro Fac Ext Cet Arc Hub Fac Was Fac Arm Total 22258 | . 908 640 1015 679 150 543 258 1738 950 1486 98 943 1123 1368 730 1417 3049 428 305 831 265 416 770 393 166 784 805 Wait 2764 | . 190 3 103 8 . 5 12 213 50 71 . 41 127 7 38 2 767 45 6 48 19 173 85 7 8 58 678 Move 17408 | . 604 603 773 631 150 521 182 1335 862 1353 94 856 787 1348 679 1394 1998 360 249 635 185 191 543 323 137 546 69 Hop . | . . . . . . . . . . . . . . . . . . . . . . . . . . . . Pick Up 188 | . 21 5 21 6 . 1 11 17 2 4 . . 23 3 1 3 41 . 3 3 8 . 2 4 1 7 1 Fast Attach 92 | . 5 . 1 1 . . 6 10 1 4 2 1 12 . 3 2 9 . 5 3 4 4 3 5 1 10 . Attach 98 | . 2 1 9 2 . 1 10 11 1 2 . 2 10 . 1 2 15 . 2 2 3 1 4 3 . 12 2 Detach 74 | . . . . . . . 2 3 . . . . 2 . . 1 23 . 1 1 . 7 9 6 . 13 6 Swap 153 | . 4 2 9 3 . 3 5 13 12 10 . 15 12 3 2 1 28 . 1 5 4 2 5 8 1 5 . Drop 230 | . 11 1 22 8 . . 19 26 2 5 2 1 28 2 3 4 54 . 2 3 15 2 2 5 1 12 . Fire 1117 | . 65 19 67 13 . 10 10 107 20 37 . 27 119 5 3 3 114 23 36 49 27 36 116 32 17 118 44 Melee 5 | . . . . . . . . . . . . . . . . 5 . . . . . . . . . . . Ram 3 | . . . . . . . . . . . . . . . . . . . . . . . . . . 3 . Kick 2 | . 2 . . . . . . . . . . . . . . . . . . . . . . . . . . Crush 41 | . 4 6 10 6 . 2 1 1 . . . . 3 . . . . . . 7 . . 1 . . . . Escape Stasis 13 | . . . . . . . . 2 . . . . . . . . . . . 6 . . . . . . 5 Rewire 70 | . . . . 1 . . . . . . . . . . . . . . . 69 . . . . . . . Trap . | . . . . . . . . . . . . . . . . . . . . . . . . . . . . Miscellaneous . | . . . . . . . . . . . . . . . . . . . . . . . . . . . . Route ------- -11/Junkyard -10/Materials (discovered 4 exits: *Mat x3 / [*Min]) -10/Mines (discovered 2 exits: *Mat x2) -9/Materials (discovered 4 exits: *Mat x3 / *Min) -9/Mines (discovered 3 exits: *Mat x2 / *Exi) -9/Exiles -8/Mines (discovered 2 exits: *Mat x2) -8/Materials -7/Factory (discovered 5 exits: *Fac x2 / *Sto x2 / *Low) -7/Lower Caves -7/Lower Caves (discovered 2 exits: *Fac / *Dat) -7/Data Miner -6/Proximity Caves -6/Factory (discovered 2 exits: *Fac / *Low) -6/Lower Caves (discovered 2 exits: *Low / *Zio) -6/Lower Caves (discovered 2 exits: *Fac / *Zio) -6/Zion (discovered 2 exits: *Dee / [*Pro]) -6/Deep Caves -5/Proximity Caves -5/Factory (discovered 5 exits: *Fac x2 / Upp x2 / *Ext) -5/Extension (discovered 2 exits: *Fac / [*Cet]) -5/Cetus (discovered 2 exits: *Fac / [*Arc]) -5/Archives (discovered 3 exits: *Fac / *Hub x2) -5/Hub_04(d) (discovered 2 exits: *Fac x2) -4/Factory -4/Waste -4/Factory -4/Armory History --------- Turn | Location | Event 1 | -11/Junkyard | Discovered new exit (range 0) 1 | -11/Junkyard | Entered Materials 172 | -10/Materials | Discovered new exit (range 7) 304 | -10/Materials | Build established: Mutant 375 | -10/Materials | Discovered new exit (range 13) 548 | -10/Materials | Discovered new exit (range 7) 723 | -10/Materials | Discovered new exit (range 13) 1264 | -10/Materials | Core integrity fell below 50% 1805 | -10/Materials | Entered Mines 1815 | -10/Mines | Met a Derelict bent on vengeance 2095 | -10/Mines | Discovered new exit (range 10) 2460 | -10/Mines | Received a Rocket Launcher from a helpful Derelict 2467 | -10/Mines | Core integrity fell below 20% 2534 | -10/Mines | Learned location of Zion (-6) 2563 | -10/Mines | Discovered new exit (range 9) 3816 | -10/Mines | Entered Materials 3816 | -9/Materials | Evolved 2 slots: Propulsion x1, Utility x1 4266 | -9/Materials | Discovered new exit (range 16) 5378 | -9/Materials | Discovered new exit (range 16) 5699 | -9/Materials | Discovered new exit (range 9) 6020 | -9/Materials | Discovered new exit (range 10) 6041 | -9/Materials | Entered Mines 6110 | -9/Mines | Found the Drone Emporium 6124 | -9/Mines | Found Prototype Device 6124 | -9/Mines | Identified Splice Drone Bay 6228 | -9/Mines | Discovered new exit (range 5) 6319 | -9/Mines | Learned Materials interactive machine intel 6584 | -9/Mines | A weapon hastily lodged in a ceiling crevice suddenly fell to the ground 6741 | -9/Mines | Assembled infested the area 6880 | -9/Mines | Discovered new exit (range 5) 6963 | -9/Mines | Found a damaged Exp. Sensor Array with a note attached 6969 | -9/Mines | Found Prototype Device 7070 | -9/Mines | Discovered new exit (range 9) 7123 | -9/Mines | Found a hidden stash of uninstalled traps 7436 | -9/Mines | Learned location of Storage (-7) 7632 | -9/Mines | Entered Exiles 7692 | -9/Exiles | Met 8R-AWN 7750 | -9/Exiles | Met EX-HEX 7863 | -9/Exiles | Met EX-DEC 7973 | -9/Exiles | Discovered new exit (range 10) 7992 | -9/Exiles | Entered Mines 8105 | -8/Mines | Discovered new exit (range 9) 8860 | -8/Mines | Discovered new exit (range 12) 9287 | -8/Mines | Entered Materials 9287 | -8/Materials | Evolved 2 slots: Utility x2 9288 | -8/Materials | Loaded intel: 19 interactive machine locations 9655 | -8/Materials | Central database locked down 9792 | -8/Materials | Discovered new exit (range 5) 9830 | -8/Materials | Entered Factory 9830 | -7/Factory | Evolved 2 slots: Propulsion x1, Utility x1 9857 | -7/Factory | Identified Exp. Sensor Array 11113 | -7/Factory | Discovered new exit (range 14) 11148 | -7/Factory | Identified exit to Factory 11328 | -7/Factory | Fabricated Cargo Storage Unit (x1) 11517 | -7/Factory | Repaired Lgt. Treads 11813 | -7/Factory | Allied Derelicts emerged from ambush trap array 11857 | -7/Factory | Discovered new exit (range 5) 11867 | -7/Factory | Identified exit to Storage 11909 | -7/Factory | Garrison activated, responded to threat 12429 | -7/Factory | Discovered exit to Factory (range 16) 12841 | -7/Factory | Discovered exit to Storage (range 15) 13430 | -7/Factory | First assault squad dispatched 13589 | -7/Factory | Discovered new exit (range 15) 13632 | -7/Factory | Identified exit to Lower Caves 13634 | -7/Factory | Entered Lower Caves 15433 | -7/Lower Caves | Discovered new exit (range 15) 15572 | -7/Lower Caves | Identified exit to Lower Caves 15789 | -7/Lower Caves | Entered another Lower Caves area 15823 | -7/Lower Caves | Discovered exit to Factory (range 8) 15900 | -7/Lower Caves | Spotted B-75 Beast 16621 | -7/Lower Caves | Attracted the attention of an 0b10 checkpoint 17964 | -7/Lower Caves | Discovered new exit (range 14) 19174 | -7/Lower Caves | Identified exit to Data Miner 19176 | -7/Lower Caves | Entered Data Miner 19177 | -7/Data Miner | Discovered new exit (range 6) 19222 | -7/Data Miner | Met Data Miner 19270 | -7/Data Miner | Learned location of Section 7 (-2) 19270 | -7/Data Miner | Acquired the access code to Warlord's prototype stash 19303 | -7/Data Miner | Received God Mode back door access code from Data Miner 19400 | -7/Data Miner | Identified exit to Proximity Caves 19402 | -7/Data Miner | Entered Proximity Caves 19865 | -6/Proximity Caves | Learned Factory emergency access door positions 19867 | -6/Proximity Caves | Escorted by Enhanced Grunt 20278 | -6/Proximity Caves | Learned Factory terminal intel 21062 | -6/Proximity Caves | Spotted B-75 Beast 21089 | -6/Proximity Caves | Allies destroyed B-75 Beast 21445 | -6/Proximity Caves | Discovered exit to Factory (range 3) 21475 | -6/Proximity Caves | Attracted the attention of an 0b10 checkpoint 21564 | -6/Proximity Caves | Entered Factory 21564 | -6/Factory | Accompanied by 1 ally 21564 | -6/Factory | Evolved 2 slots: Power x1, Utility x1 21566 | -6/Factory | Loaded intel: 25 terminal locations 21687 | -6/Factory | Fabricated Arm. Heavy Treads (x2) 23527 | -6/Factory | Incoming investigation squad redirected 23907 | -6/Factory | Discovered new exit (range 6) 23954 | -6/Factory | Discovered new exit (range 12) 23956 | -6/Factory | Identified exit to Factory 23999 | -6/Factory | Identified exit to Lower Caves 24001 | -6/Factory | Entered Lower Caves 24326 | -6/Lower Caves | Learned location of 1 exit from Factory 24409 | -6/Lower Caves | Learned 8 Factory zone layouts 24526 | -6/Lower Caves | Learned location of 1 exit from Factory 24584 | -6/Lower Caves | Encountered a Warlord checkpoint 24719 | -6/Lower Caves | A Derelict revealed a hidden shortcut to a safe place 24876 | -6/Lower Caves | Identified exit to Zion 25690 | -6/Lower Caves | Discovered new exit (range 2) 25690 | -6/Lower Caves | Identified exit to Lower Caves 27343 | -6/Lower Caves | Entered another Lower Caves area 27393 | -6/Lower Caves | Discovered exit to Factory (range 12) 28547 | -6/Lower Caves | Discovered exit to Zion (range 10) 28945 | -6/Lower Caves | Learned location of 1 exit from Factory 28951 | -6/Lower Caves | Found Alien Artifact 28951 | -6/Lower Caves | Identified Core Expander 28951 | -6/Lower Caves | Installed Core Expander, added new Propulsion slot 29071 | -6/Lower Caves | Entered Zion 29377 | -6/Zion | Learned location of 1 exit from Factory 29495 | -6/Zion | Discovered new exit (range 12) 29719 | -6/Zion | Learned Factory interactive machine intel 30031 | -6/Zion | Received a hallucinogenic algorithm 30664 | -6/Zion | Found GAL Module 33195 | -6/Zion | Discovered new exit (range 5) 33197 | -6/Zion | Saw the warning signs outside the Deep Caves entrance 33200 | -6/Zion | Identified exit to Deep Caves 33202 | -6/Zion | Entered Deep Caves 33662 | -6/Deep Caves | Attacked by Z-Imprinter 33678 | -6/Deep Caves | Destroyed Z-Imprinter 33880 | -6/Deep Caves | Found Prototype Protection 33920 | -6/Deep Caves | Identified Zio. Weapon Casing 33962 | -6/Deep Caves | Found Prototype Protection 33962 | -6/Deep Caves | Identified Zio. Heavy Carapace 34861 | -6/Deep Caves | Discovered new exit (range 6) 34998 | -6/Deep Caves | Spotted as-50383 35025 | -6/Deep Caves | Destroyed as-50383 35279 | -6/Deep Caves | Spotted as-29075 35311 | -6/Deep Caves | Destroyed as-29075 35572 | -6/Deep Caves | Triggered Deep Caves wall 35576 | -6/Deep Caves | Destroyed AS-95881 35607 | -6/Deep Caves | Spotted AS-43673 35607 | -6/Deep Caves | Destroyed AS-43673 35628 | -6/Deep Caves | Destroyed 37 combat bots 35662 | -6/Deep Caves | Found Prototype Device 35662 | -6/Deep Caves | Identified Trap Reconfigurator 35705 | -6/Deep Caves | Exposed GOLEM chamber 35709 | -6/Deep Caves | Found GOLEM Unit 36462 | -6/Deep Caves | Build established: Golem 36817 | -6/Deep Caves | Found GOLEM Unit 36823 | -6/Deep Caves | Found GOLEM Unit 36828 | -6/Deep Caves | Found GOLEM Unit 36838 | -6/Deep Caves | Found GOLEM Unit 36968 | -6/Deep Caves | Build established: Mutant 37468 | -6/Deep Caves | Build established: Hauler-Mutant 37837 | -6/Deep Caves | Found GOLEM Unit 38257 | -6/Deep Caves | Identified exit to Proximity Caves 38259 | -6/Deep Caves | Entered Proximity Caves 38261 | -5/Proximity Caves | Spotter reported a threat 38262 | -5/Proximity Caves | Spotter reported a threat 38339 | -5/Proximity Caves | Spotter reported a threat 38397 | -5/Proximity Caves | Spotter reported a threat 38542 | -5/Proximity Caves | Spotter reported a threat 38547 | -5/Proximity Caves | Attracted the attention of an 0b10 checkpoint 39246 | -5/Proximity Caves | Discovered exit to Factory (range 6) 39273 | -5/Proximity Caves | Entered Factory 39273 | -5/Factory | Evolved 2 slots: Propulsion x1, Utility x1 39274 | -5/Factory | Identified exit to Extension 39274 | -5/Factory | Identified exit to Upper Caves 39274 | -5/Factory | Identified exit to Factory 39276 | -5/Factory | Loaded intel: 52 interactive machine locations 39573 | -5/Factory | Search patrols dispatched 39873 | -5/Factory | Search patrols dispatched 39993 | -5/Factory | Lost 3 parts (1n2u) 40019 | -5/Factory | Entered Extension 40144 | -5/Extension | Rescued a captive Derelict 40145 | -5/Extension | Rescued a captive Derelict 40226 | -5/Extension | Rescued a captive Derelict 40227 | -5/Extension | Rescued a captive Derelict 40317 | -5/Extension | Rescued a captive Derelict 40371 | -5/Extension | Rescued a captive Derelict 40373 | -5/Extension | Rescued a captive Derelict 40384 | -5/Extension | Rescued a captive Derelict 40531 | -5/Extension | Rescued A7 41062 | -5/Extension | Spotted B-75 Beast 41087 | -5/Extension | Destroyed B-75 Beast 41105 | -5/Extension | Spotted B-75 Beast 41129 | -5/Extension | Allies destroyed B-75 Beast 41252 | -5/Extension | Rescued a captive Derelict 41485 | -5/Extension | Rescued a captive Derelict 41486 | -5/Extension | Rescued a captive Derelict 41539 | -5/Extension | Rescued a captive Derelict 41540 | -5/Extension | Rescued a captive Derelict 41838 | -5/Extension | Discovered exit to Factory (range 10) 41840 | -5/Extension | Discovered new exit (range 6) 41877 | -5/Extension | Entered Cetus 41877 | -5/Cetus | Accompanied by 12 allies (A7) 41882 | -5/Cetus | Acquired a Cetus Manufacturing Module code from A7 41910 | -5/Cetus | Spotted Cetus Guard 41910 | -5/Cetus | Spotted Cetus Guard 41915 | -5/Cetus | Spotted Cetus Guard 41916 | -5/Cetus | Destroyed Cetus Guard 41917 | -5/Cetus | Spotted Cetus Guard 41924 | -5/Cetus | Destroyed Cetus Guard 41930 | -5/Cetus | Allies destroyed Cetus Guard 41934 | -5/Cetus | Destroyed Cetus Guard 41986 | -5/Cetus | System corruption reached 10% 42032 | -5/Cetus | Build established: Commander-Mutant 42058 | -5/Cetus | Cetus Manufacturing Module disabled 42086 | -5/Cetus | Escorted A7 to Cetus Mainframe 42106 | -5/Cetus | Discovered new exit (range 15) 42136 | -5/Cetus | Spotted Cetus Guard 42136 | -5/Cetus | Spotted Cetus Guard 42141 | -5/Cetus | Spotted Cetus Guard 42142 | -5/Cetus | Spotted Cetus Guard 42147 | -5/Cetus | Allies destroyed Cetus Guard 42153 | -5/Cetus | Allies destroyed Cetus Guard 42155 | -5/Cetus | Allies destroyed Cetus Guard 42164 | -5/Cetus | Discovered exit to Factory (range 15) 42179 | -5/Cetus | Met Revision 17 42286 | -5/Cetus | Destroyed A7 42290 | -5/Cetus | Extracted ID and sensor layout for unrecognized location from A7's data core 42351 | -5/Cetus | Build established: Hauler-Mutant 42353 | -5/Cetus | Entered Archives 42353 | -5/Archives | Accompanied by 6 allies 42373 | -5/Archives | Discovered new exit (range 24) 42698 | -5/Archives | Discovered exit to Factory (range 15) 42729 | -5/Archives | Build established: Hauler-Golem 42732 | -5/Archives | Discovered new exit (range 15) 42979 | -5/Archives | Entered Hub_04(d) 42979 | -5/Hub_04(d) | Accompanied by 5 allies 43198 | -5/Hub_04(d) | Spotted B-75 Beast 43223 | -5/Hub_04(d) | Destroyed B-75 Beast 43302 | -5/Hub_04(d) | Incoming investigation squad redirected 43330 | -5/Hub_04(d) | Lost 3 parts (3u) 43715 | -5/Hub_04(d) | Discovered exit to Factory (range 13) 44012 | -5/Hub_04(d) | Discovered exit to Factory (range 5) 44569 | -5/Hub_04(d) | Network Hub disabled 44584 | -5/Hub_04(d) | Network Hub disabled 44592 | -5/Hub_04(d) | Spotted Lightning 44613 | -5/Hub_04(d) | Spotted Lightning 44614 | -5/Hub_04(d) | Spotted Lightning 44620 | -5/Hub_04(d) | System corruption reached 30% 44624 | -5/Hub_04(d) | Entered Factory 44624 | -4/Factory | Evolved 2 slots: Weapon x2 45315 | -4/Factory | Incoming investigation squad redirected 45547 | -4/Factory | Sucked down chute 45547 | -4/Factory | Entered Waste 45562 | -4/Waste | EMP discharged 45566 | -4/Waste | Spotted C-40 Crusher 45575 | -4/Waste | Crushed by Compactor (1 part destroyed) 45579 | -4/Waste | Destroyed C-40 Crusher 45603 | -4/Waste | Spotted C-40 Crusher 45606 | -4/Waste | Spotted C-40 Crusher 45609 | -4/Waste | Destroyed C-40 Crusher 45609 | -4/Waste | Destroyed C-40 Crusher 45615 | -4/Waste | Spotted C-40 Crusher 45620 | -4/Waste | Destroyed C-40 Crusher 45623 | -4/Waste | Spotted C-40 Crusher 45645 | -4/Waste | Destroyed C-40 Crusher 45662 | -4/Waste | EMP discharged 45662 | -4/Waste | System corruption reached 10% 45762 | -4/Waste | EMP discharged 45776 | -4/Waste | Spotted C-40 Crusher 45783 | -4/Waste | Crushed by Compactor (0 parts destroyed, 1 dropped) 45788 | -4/Waste | Destroyed C-40 Crusher 45862 | -4/Waste | EMP discharged 45862 | -4/Waste | System corruption reached 30% 45914 | -4/Waste | Discovered new exit (range 11) 45938 | -4/Waste | Entered Factory 46437 | -4/Factory | Lost 3 parts (1u2w) 46557 | -4/Factory | Lost 4 parts (2u2w) 46609 | -4/Factory | Found Prototype Device 47184 | -4/Factory | Lost 3 parts (1n2w) 47292 | -4/Factory | Lost 4 parts (1p2n1u) 47301 | -4/Factory | Discovered new exit (range 11) 47307 | -4/Factory | Core integrity fell below 50% 47308 | -4/Factory | Entered Armory 47558 | -4/Armory | First assault squad dispatched 47583 | -4/Armory | Incoming assault squad redirected 47586 | -4/Armory | Incoming assault squad redirected 47728 | -4/Armory | Build established: Golem 47881 | -4/Armory | Identified Active Sensor Suite 47884 | -4/Armory | Fabricated Cargo Storage Unit (x1) 47953 | -4/Armory | Crushed by falling debris 47972 | -4/Armory | Crushed by falling debris 48014 | -4/Armory | Crushed by falling debris 48018 | -4/Armory | Crushed by falling debris 48063 | -4/Armory | Crushed by falling debris 48071 | -4/Armory | Crushed by falling debris 48072 | -4/Armory | Core integrity fell below 20% 48075 | -4/Armory | Crushed by falling debris 48089 | -4/Armory | Crushed by falling debris 48095 | -4/Armory | Crushed by falling debris 48123 | -4/Armory | Crushed by falling debris 48141 | -4/Armory | Crushed by falling debris 48154 | -4/Armory | Lost 12 parts (1p1n7u3w) 48187 | -4/Armory | Crushed by falling debris 48194 | -4/Armory | Crushed by falling debris 48194 | -4/Armory | Smashed by cave-in Last Messages --------------- 48095_ Asb. Alloy Armor destroyed. 48095_ System corrupted by crushing effect (+1). 48111_ System corrupted: IFF burst signal emitted. 48123_ The unstable cave ceiling collapses. 48123_ Crushed by falling debris. 48123_ Asb. Flux Generator destroyed. 48123_ System corrupted by crushing effect (+5). 48123_ Asb. Focal Cannon destroyed. 48123_ System corrupted by crushing effect (+5). 48126_ System corrupted: Substantial component data lost. 48141_ The unstable cave ceiling collapses. 48141_ Crushed by falling debris. 48142_ System corrupted: Component data lost. 48158_ Q5UWPGGKTMW>N SL7YIGU7EYZ1CXQJ4W:4J,AO 48176_ System corrupted: Heat flow error (+253). 48187_ The unstable cave ceiling collapses. 48187_ Crushed by falling debris. 48193_ System corrupted: Heat flow error (+241). 48194_ The unstable cave ceiling collapses. 48194_ Crushed by falling debris. Map ----- +----------------------------------------------------+ | ?????????????????????????????????????????????????? | | ?????????????????????????????????????????????????? | | ?????????????????????????????????????????????????? | | ?????????????????????????????????????????????????? | | ?????????????????????????????????????????????????? | | ?????????????????????????????????????????????????? | | ?????????????????????????????????????????????????? | | ?????????????????????????????????????????????????? | | ?????????????????????????????????????????????????? | | ?????????????????????????????????????????????????? | | ?????????????????????????????????????????????????? | | ?????????????????????????????????????????????????? | | ?????????????????????????????????????????????????? | | ?????????????????????????????????????????????????? | | ?????????????????????????????????????????????????? | | ?????????????????????????????????????????????????? | | ?????????????????????????????????????????????????? | | ?????????????????????????????????????????????????? | | ?????????????????????????????????????????????????? | | ?????????????????????????????????????????????????? | | ?????????????????????????????????????????????????? | | ?????????????????????????????????????????????????? | | ?????????????????????????????????????????????????? | | ??????????????????????????#############??????????? | | ??????????????????????##### # # #####?????????? | | ?????????????????????## #@############ ###???????? | | ?????????????????????#######?????????## ##??????? | | ?????????????????????###??????????????### ######## | | ????????????????????????????????????????## | | ?????????????????????????????????????????######### | | ?????????????????????????????????????????????????? | | ?????????????????????????????????????????????????? | | ?????????????????????????????????????????????????? | | ?????????????????????????????????????????????????? | | ?????????????????????????????????????????????????? | | ?????????????????????????????????????????????????? | | ?????????????????????????????????????????????????? | | ?????????????????????????????????????????????????? | | ?????????????????????????????????????????????????? | | ?????????????????????????????????????????????????? | | ?????????????????????????????????????????????????? | | ?????????????????????????????????????????????????? | | ?????????????????????????????????????????????????? | | ?????????????????????????????????????????????????? | | ?????????????????????????????????????????????????? | | ?????????????????????????????????????????????????? | | ?????????????????????????????????????????????????? | | ?????????????????????????????????????????????????? | | ?????????????????????????????????????????????????? | | ?????????????????????????????????????????????????? | +----------------------------------------------------+ Best States ------------- Heat Dissipation 99 Coolant Potential 50 Energy Generation 53 Energy Capacity 1700 Matter Stores 420 Matter Capacity 450 Sight Range 16 Robot Scan Range 20 Terrain Scan Range 20 Terrain Scan Density 10 Jamming Range 16 Cloak Strength 3 Power Amplification 20 Additional Mass Support 20 Armor Coverage 3200 Resistance: KI 15 Resistance: TH 15 Resistance: EX 15 Resistance: EM 15 Resistance: I 15 Resistance: S 15 Resistance: P 15 Propulsion Shielding 33 Weapon Shielding 100 Evasion (%) 55 Targeting Accuracy 6 Recoil Reduction 6 Energy Filtering 30 Particle Charging 25 Offensive Hacking 12 Authchip Count 1 Item Schematics ----------------- Cargo Storage Unit | -10/Materials | Hacked Combat Drone Bay | -7/Data Miner | Free Lgt. Regenerative Plating | -7/Data Miner | Free Lance | -7/Data Miner | Free Cld. Aerolev Unit | -7/Data Miner | Free Lyr. Heavy Armor Plating | -7/Data Miner | Free Gravity Neutralizer | -7/Data Miner | Free Antigrav System | -7/Data Miner | Free Force Rifle | -7/Data Miner | Free Imp. Weapon Cycler | -7/Data Miner | Free Imp. Heavy Armor Plating | -7/Data Miner | Free Adv. Plasma Cannon | -6/Zion | Archive Imp. Particle Charger | -6/Zion | Archive Centrium Wheel | -6/Zion | Archive Lgt. Antimatter Reactor | -6/Zion | Archive Arc Thrower | -6/Zion | Archive Recoil Nullifier | -6/Zion | Archive Mak. Transmission Jammer | -6/Zion | Archive Mass Driver | -6/Zion | Archive Hpw. Shock Rifle | -6/Zion | Archive Imp. Recalibrator | -6/Zion | Archive Imp. System Restoration Module | -6/Zion | Archive Enh. Optical Array | -6/Zion | Archive Imp. Remote Datajack | -6/Zion | Archive Mak. Hover Unit | -6/Zion | Archive Lrn. Phase Cannon | -6/Zion | Archive Robot Schematics ------------------ B-48 Gladiator | -7/Data Miner | Free R-10 Processor | -7/Data Miner | Free M-22 Extractor | -7/Data Miner | Free L-41 Fighter | -7/Data Miner | Free S-27 Virus | -7/Data Miner | Free G-47 Trooper | -6/Zion | Archive E-15 Imp | -6/Zion | Archive Fabricated ------------ Cargo Storage Unit | x1 | -7/Factory Arm. Heavy Treads | x2 | -6/Factory | Preloaded Cargo Storage Unit | x1 | -4/Armory Alien Tech Used ----------------- Core Expander Achievements -------------- None Challenges ------------ None Game ------ Seed PrecisionCombatDeconstructor Manual? 0 Play Time 02:47:26 Cumulative 337.0 hours Start 2023.04.29 @ 09:01:19 End 2023.04.29 @ 17:50:02 Sessions 9 Manual Loads 0 Difficulty Rogue Special Mode None Game No. 471 Rogue 444 Adventurer 4 Explorer 23 Win Type - Total 19 Types 14/0/2/2/1/0/0/0/0 Lore% 77 Gallery% 92 Achievement% 82 Wizard Run 0 Options --------- ASCII 0 Keyboard 1 Movement Numpad Keybinds 0 Fullscreen 2 Font 18/SmallcapsGlow Map View 76x50 Tactical HUD 1 Map Filters NONE Filters NONE Steam 1 RUN: d12a4f13-ad92-4140-8125-53fb2b1c1b6c